bitfinex-derivatives/quotes_BTCF0:USTF0_20250405
["timestamp","ask_amount","ask_price","bid_price","bid_amount"]
[1743853961333,0.22064001,83619.0,83618.0,0.1249374]
[1743853962347,0.16964001,83619.0,83618.0,0.1249374]
[1743853962539,0.22064001,83619.0,83618.0,0.1249374]
[1743853963950,0.22064001,83619.0,83618.0,0.0837374]
[1743853969051,0.22064001,83619.0,83618.0,0.0617374]
[1743853976863,0.22064001,83619.0,83618.0,0.0397374]
[1743853980370,0.68612765,83619.0,83618.0,0.0397374]
[1743853984465,0.68612765,83619.0,83617.0,0.0418691]
[1743853984665,0.1701,83618.0,83617.0,0.0418691]
[1743853986276,0.1701,83618.0,83617.0,0.1256159]
[1743853986979,0.17142,83618.0,83617.0,0.1256159]
[1743853987278,0.17142,83618.0,83617.0,0.2955159]
[1743853992288,0.22242,83618.0,83617.0,0.2735159]
[1743853996681,0.22242,83618.0,83617.0,0.1929159]
[1743853999985,0.22242,83618.0,83617.0,0.1709159]
[1743854000186,0.22242,83618.0,83617.0,0.212785]
[1743854001184,0.22242,83618.0,83617.0,0.123485]
[1743854001488,0.22242,83618.0,83617.0,0.116085]
[1743854001786,0.22242,83618.0,83617.0,0.0418691]
[1743854004584,0.22242,83618.0,83617.0,0.0837468]
[1743854004785,0.58322,83618.0,83617.0,0.0837468]
[1743854007999,0.58322,83618.0,83617.0,0.0687712]
[1743854008890,0.58322,83618.0,83617.0,0.0467712]
[1743854009694,0.22242,83618.0,83617.0,0.0467712]
[1743854012500,0.33265652,83618.0,83617.0,0.0467712]
[1743854012994,0.33265652,83618.0,83609.0,0.1243772]
[1743854013195,0.3608,83613.0,83602.0,0.05261114]
[1743854013504,0.3608,83606.0,83597.0,0.3576834]
[1743854013799,0.2552,83605.0,83600.0,0.0418816]
[1743854013988,0.2552,83605.0,83604.0,0.0837598]
[1743854014190,0.25648,83605.0,83604.0,0.0837598]
[1743854014401,0.16878,83605.0,83604.0,0.0837598]
[1743854016499,0.16878,83605.0,83604.0,0.1944598]
[1743854018500,0.16878,83605.0,83604.0,0.1412598]
[1743854020905,0.16878,83605.0,83604.0,0.12587086]
[1743854021803,0.16878,83605.0,83604.0,0.17917086]
[1743854023501,0.21978,83605.0,83604.0,0.17917086]
[1743854024304,0.21978,83605.0,83604.0,0.1328]
[1743854024606,0.21978,83605.0,83604.0,0.2165598]
[1743854027907,0.21978,83605.0,83604.0,0.0837598]
[1743854028110,0.30718,83605.0,83604.0,0.0837598]
[1743854031908,0.30718,83605.0,83604.0,0.0617598]
[1743854035815,0.25618,83605.0,83601.0,0.0838428]
[1743854036106,0.2172,83604.0,83601.0,0.0837627]
[1743854036311,0.30220021,83604.0,83599.0,0.03588452]
[1743854036514,0.2080805,83603.0,83598.0,8e-05]
[1743854036705,0.0837626,83602.0,83598.0,8e-05]
[1743854036907,0.08500261,83602.0,83598.0,8e-05]
[1743854037108,0.2499632,83601.0,83598.0,8e-05]
[1743854037312,0.1662,83601.0,83598.0,8e-05]
[1743854037513,0.16744001,83601.0,83598.0,8e-05]
[1743854037713,0.25120321,83601.0,83598.0,8e-05]
[1743854039311,0.16744001,83601.0,83598.0,8e-05]
[1743854039712,0.25120321,83601.0,83596.0,0.00017947]
[1743854039912,0.25120321,83601.0,83596.0,0.08394707]
[1743854040512,0.0837639,83600.0,83596.0,0.08394707]
[1743854040711,0.1662,83601.0,83597.0,0.0837668]
[1743854041015,0.1588,83599.0,83597.0,0.0837668]
[1743854041316,0.0828,83598.0,83597.0,0.0837668]
[1743854041817,0.1619,83598.0,83597.0,0.0837668]
[1743854042719,0.16314001,83598.0,83597.0,0.0837668]
[1743854047121,0.16314001,83598.0,83597.0,0.0685168]
[1743854047310,0.16314001,83598.0,83597.0,0.0465168]
[1743854049521,0.16314001,83598.0,83597.0,0.0434968]
[1743854049718,0.16314001,83598.0,83596.0,0.04206337]
[1743854049925,0.16314001,83598.0,83597.0,0.0837668]
[1743854051525,0.21414001,83598.0,83597.0,0.0837668]
[1743854052520,0.21414001,83598.0,83596.0,0.00017947]
[1743854052727,0.21414001,83598.0,83597.0,0.0837668]
[1743854055126,0.21414001,83598.0,83597.0,0.0617668]
[1743854056825,0.32437653,83598.0,83597.0,0.0617668]
[1743854057026,0.68517653,83598.0,83597.0,0.0617668]
[1743854057229,0.32437653,83598.0,83597.0,0.0617668]
[1743854057429,0.68517653,83598.0,83597.0,0.0617668]
[1743854061825,0.63417653,83598.0,83597.0,0.0617668]
[1743854062031,0.68517653,83598.0,83597.0,0.0617668]
[1743854062828,0.68517653,83598.0,83597.0,0.0397668]
[1743854064731,0.57494001,83598.0,83597.0,0.0397668]
[1743854066825,0.49214001,83598.0,83597.0,0.0397668]
[1743854067026,0.44114001,83598.0,83597.0,0.1674668]
[1743854067224,0.00124001,83598.0,83597.0,0.5282668]
[1743854069634,0.08114001,83598.0,83597.0,0.1674668]
[1743854070531,0.08114001,83598.0,83597.0,0.1277]
[1743854070734,0.08114001,83598.0,83597.0,0.2114668]
[1743854070933,0.16134001,83598.0,83597.0,0.2114668]
[1743854072827,0.1601,83598.0,83597.0,0.2114668]
[1743854077429,0.5209,83598.0,83597.0,0.2114668]
[1743854078233,0.5209,83598.0,83597.0,0.1894668]
[1743854078638,0.5209,83598.0,83597.0,0.0837668]
[1743854079139,0.0837668,83597.0,83596.0,0.00025947]
[1743854079339,0.16350681,83597.0,83596.0,0.00025947]
[1743854079542,0.32330681,83597.0,83596.0,0.08394727]
[1743854080230,0.23954001,83597.0,83596.0,0.08394727]
[1743854080633,0.29054001,83597.0,83596.0,0.08394727]
[1743854082543,0.23954001,83597.0,83596.0,0.08394727]
[1743854082742,0.29054001,83597.0,83596.0,0.08394727]
[1743854086046,0.29054001,83597.0,83596.0,0.06294727]
[1743854093645,0.29054001,83597.0,83596.0,0.04394727]
[1743854098654,0.23954001,83597.0,83596.0,0.04394727]
[1743854098857,0.29054001,83597.0,83596.0,0.04394727]
[1743854101458,0.29054001,83597.0,83595.0,0.0419644]
[1743854101668,0.29054001,83597.0,83596.0,0.0837678]
[1743854103560,0.23954001,83597.0,83596.0,0.0837678]
[1743854103860,0.21204001,83597.0,83596.0,0.0837678]
[1743854104066,0.21204001,83597.0,83596.0,0.2592678]
[1743854104460,0.21204001,83597.0,83596.0,0.1612678]
[1743854106063,0.29364001,83597.0,83596.0,0.1612678]
[1743854106263,0.29364001,83597.0,83596.0,0.0837678]
[1743854106872,0.21204001,83597.0,83596.0,0.0837678]
[1743854109072,0.21204001,83597.0,83596.0,0.0617678]
[1743854116777,0.21204001,83597.0,83596.0,0.0397678]
[1743854117076,0.16104001,83597.0,83596.0,0.0397678]
[1743854117276,0.16104001,83597.0,83596.0,0.1383678]
[1743854117869,0.16069011,83597.0,83596.0,0.1222678]
[1743854119883,0.16069011,83597.0,83596.0,0.0397678]
[1743854124585,0.16069011,83597.0,83595.0,0.0418844]
[1743854124781,0.16069011,83597.0,83596.0,0.0837678]
[1743854132392,0.16069011,83597.0,83596.0,0.0617678]
[1743854136797,0.08219011,83597.0,83596.0,0.5150678]
[1743854136987,0.0813,83597.0,83596.0,0.5150678]
[1743854139798,0.1650668,83597.0,83596.0,0.4225678]
[1743854140104,0.1650668,83597.0,83596.0,0.0397678]
[1743854140397,0.16618681,83597.0,83596.0,0.0403678]
[1743854140789,0.24728681,83597.0,83596.0,0.0403678]
[1743854141699,0.16352001,83597.0,83596.0,0.0403678]
[1743854141895,0.16352001,83597.0,83595.0,8e-05]
[1743854142095,0.0837678,83596.0,83595.0,0.0837688]
[1743854142400,0.08488781,83596.0,83595.0,0.0843688]
[1743854142591,0.24058781,83596.0,83595.0,0.0843688]
[1743854142992,0.15682001,83596.0,83595.0,0.0843688]
[1743854147801,0.15682001,83596.0,83595.0,0.0623688]
[1743854155403,0.15682001,83596.0,83595.0,0.0403688]
[1743854155908,0.15682001,83596.0,83595.0,0.0006]
[1743854156106,0.15682001,83596.0,83594.0,0.083849]
[1743854157207,0.15682001,83596.0,83595.0,0.0837688]
[1743854162906,0.15682001,83596.0,83594.0,0.083849]
[1743854162907,0.0837688,83595.0,83594.0,8e-05]
[1743854163110,0.00112001,83595.0,83585.0,0.32022972]
[1743854163413,0.0837742,83590.0,83587.0,0.0837768]
[1743854163716,0.3225752,83589.0,83586.0,0.0837769]
[1743854164016,0.24000001,83589.0,83588.0,0.0837759]
[1743854165614,0.32377511,83589.0,83584.0,0.0418897]
[1743854165821,0.24000001,83589.0,83588.0,0.0837759]
[1743854168726,0.16390001,83589.0,83588.0,0.0837759]
[1743854168909,0.16390001,83589.0,83588.0,0.1014759]
[1743854169316,0.16390001,83589.0,83588.0,0.1821759]
[1743854170817,0.16390001,83589.0,83588.0,0.1601759]
[1743854174721,0.16390001,83589.0,83588.0,0.1424759]
[1743854174922,0.16390001,83589.0,83588.0,0.0617759]
[1743854176918,0.16390001,83589.0,83588.0,0.1579759]
[1743854177732,0.16390001,83589.0,83588.0,0.0617759]
[1743854178525,0.16390001,83589.0,83588.0,0.0457759]
[1743854181431,0.0837761,83588.0,83568.0,0.3608]
[1743854181730,0.00116,83588.0,83587.0,0.0837769]
[1743854181931,0.07786,83588.0,83587.0,0.0837769]
[1743854187434,0.07786,83588.0,83587.0,0.0617769]
[1743854189842,0.43866,83588.0,83587.0,0.0617769]
[1743854191549,0.5224361,83588.0,83586.0,8e-05]
[1743854191841,0.5224361,83588.0,83586.0,0.167635]
[1743854192035,0.5224361,83588.0,83587.0,0.0837769]
[1743854192935,0.0837785,83586.0,83582.0,0.083781]
[1743854193135,0.1590789,83585.0,83584.0,0.0837796]
[1743854193641,0.0753,83585.0,83584.0,0.0837796]
[1743854193843,0.07646,83585.0,83584.0,0.0837796]
[1743854195146,0.07646,83585.0,83584.0,0.0667796]
[1743854195836,0.43726,83585.0,83584.0,0.0667796]
[1743854196746,0.44645916,83585.0,83584.0,0.0667796]
[1743854197252,0.52505916,83585.0,83584.0,0.0667796]
[1743854198844,0.59925916,83585.0,83584.0,0.0667796]
[1743854202948,0.59925916,83585.0,83584.0,0.0507796]
[1743854203349,0.68303816,83585.0,83583.0,0.0838607]
[1743854203548,0.59925916,83585.0,83584.0,0.0837799]
[1743854206545,0.23845916,83585.0,83584.0,0.0837799]
[1743854206743,0.59925916,83585.0,83584.0,0.0837799]
[1743854209151,0.68303806,83585.0,83584.0,0.0837799]
[1743854210047,0.59925916,83585.0,83584.0,0.0837799]
[1743854210543,0.04189,83584.0,83574.0,0.06359947]
[1743854210745,0.3608,83575.0,83574.0,0.1256848]
[1743854211048,0.3608,83575.0,83574.0,0.0418949]
[1743854211248,0.36192001,83575.0,83574.0,0.0418949]
[1743854213147,0.0837919,83572.0,83571.0,0.00059829]
[1743854213453,0.00120001,83572.0,83571.0,0.08439119]
[1743854213655,0.15530001,83572.0,83571.0,0.08439119]
[1743854217850,0.15295945,83572.0,83571.0,0.08439119]
[1743854218355,0.15295945,83572.0,83571.0,0.06239119]
[1743854221048,0.15371945,83572.0,83571.0,0.06299119]
[1743854225661,0.15371945,83572.0,83571.0,0.0006]
[1743854225859,0.15371945,83572.0,83571.0,0.0837929]
[1743854226052,0.15371945,83572.0,83571.0,0.0624329]
[1743854226255,0.07431945,83572.0,83571.0,0.1482329]
[1743854226555,0.07355945,83572.0,83571.0,0.1482329]
[1743854231771,0.07355945,83572.0,83571.0,0.5090329]
[1743854233370,0.07355945,83572.0,83571.0,0.5012329]
[1743854233674,0.07435945,83572.0,83571.0,0.4792329]
[1743854233869,0.07435945,83572.0,83571.0,0.1184329]
[1743854238075,0.07435945,83572.0,83571.0,0.1262329]
[1743854238479,0.07355945,83572.0,83571.0,0.1262329]
[1743854241482,0.07355945,83572.0,83571.0,0.1702329]
[1743854245386,0.07435945,83572.0,83571.0,0.5310329]
[1743854245586,0.07355945,83572.0,83571.0,0.5310329]
[1743854246684,0.07355945,83572.0,83571.0,0.1702329]
[1743854246885,0.07435945,83572.0,83571.0,0.1702329]
[1743854247084,0.07435945,83572.0,83571.0,0.5310329]
[1743854247286,0.07355945,83572.0,83571.0,0.5310329]
[1743854249490,0.07355945,83572.0,83571.0,0.5090329]
[1743854249685,0.07355945,83572.0,83571.0,0.5096329]
[1743854250191,0.07451946,83572.0,83571.0,0.5096329]
[1743854250887,0.07451946,83572.0,83571.0,0.4529929]
[1743854252093,0.07451946,83572.0,83571.0,0.4451929]
[1743854257287,0.07451946,83572.0,83571.0,0.4231929]
[1743854264901,0.07451946,83572.0,83571.0,0.4011929]
[1743854267202,0.07451946,83572.0,83571.0,0.0403929]
[1743854267405,0.07451946,83572.0,83571.0,0.4011929]
[1743854267903,0.07451946,83572.0,83571.0,0.0403929]
[1743854268105,0.07451946,83572.0,83571.0,0.4011929]
[1743854270007,0.07451946,83572.0,83571.0,0.0403929]
[1743854270402,0.07451946,83572.0,83571.0,0.4011929]
[1743854271496,0.07451946,83572.0,83571.0,0.0403929]
[1743854271704,0.07451946,83572.0,83571.0,0.4011929]
[1743854272207,0.07451946,83572.0,83571.0,0.0403929]
[1743854272399,0.07451946,83572.0,83571.0,0.4011929]
[1743854272600,0.07451946,83572.0,83571.0,0.3614]
[1743854273206,0.07451946,83572.0,83571.0,0.4451929]
[1743854280406,0.07451946,83572.0,83571.0,0.4231929]
[1743854281415,0.07451946,83572.0,83571.0,0.0623929]
[1743854281710,0.07451946,83572.0,83571.0,0.4231929]
[1743854283014,0.07451946,83572.0,83571.0,0.0623929]
[1743854283311,0.07451946,83572.0,83571.0,0.4231929]
[1743854288014,0.07451946,83572.0,83571.0,0.4011929]
[1743854295316,0.07451946,83572.0,83571.0,0.0403929]
[1743854295722,0.07451946,83572.0,83570.0,0.0837929]
[1743854295923,0.0761,83571.0,83570.0,0.0837929]
[1743854298521,0.0761,83571.0,83570.0,0.1708929]
[1743854298730,0.07355945,83572.0,83571.0,0.0837929]
[1743854298937,0.07355945,83572.0,83571.0,0.0912929]
[1743854299134,0.07355945,83572.0,83571.0,0.1546929]
[1743854300025,0.07355945,83572.0,83571.0,0.1552929]
[1743854300736,0.07467946,83572.0,83571.0,0.1552929]
[1743854300936,0.07355945,83572.0,83571.0,0.1552929]
[1743854301535,0.07467946,83572.0,83571.0,0.1552929]
[1743854303633,0.07467946,83572.0,83571.0,0.1332929]
[1743854311144,0.07467946,83572.0,83571.0,0.1112929]
[1743854313048,0.07467946,83572.0,83571.0,0.0403929]
[1743854317147,0.15847136,83572.0,83569.0,0.0418974]
[1743854317341,0.041898,83569.0,83568.0,0.0837942]
[1743854317538,0.2368932,83571.0,83570.0,0.0837939]
[1743854317743,0.15442,83571.0,83570.0,0.0837939]
[1743854317941,0.2382129,83571.0,83570.0,0.0837939]
[1743854318945,0.2382129,83571.0,83570.0,0.0697939]
[1743854319244,0.0837949,83570.0,83569.0,0.0837948]
[1743854319440,0.0851149,83570.0,83569.0,0.0837948]
[1743854319639,0.1599149,83570.0,83569.0,0.0837948]
[1743854319847,0.0837949,83569.0,83568.0,8e-05]
[1743854320047,0.0851549,83569.0,83568.0,0.0838759]
[1743854320949,0.0851549,83569.0,83568.0,8e-05]
[1743854321151,0.1599549,83569.0,83568.0,8e-05]
[1743854322052,0.0837969,83567.0,83566.0,8e-05]
[1743854322440,0.1568969,83567.0,83566.0,8e-05]
[1743854322646,0.1568969,83567.0,83565.0,0.0837988]
[1743854322647,0.0837979,83566.0,83565.0,0.0837988]
[1743854322839,0.0851179,83566.0,83565.0,0.0838788]
[1743854323043,0.1582179,83566.0,83565.0,0.0838788]
[1743854326557,0.1582179,83566.0,83565.0,0.0698788]
[1743854332965,0.07442,83566.0,83565.0,0.0698788]
[1743854334361,0.07442,83566.0,83565.0,0.0568788]
[1743854334762,0.1582179,83566.0,83565.0,0.0568788]
[1743854335456,0.1582179,83566.0,83565.0,8e-05]
[1743854336466,0.1582179,83566.0,83565.0,0.0838789]
[1743854336765,0.2335179,83566.0,83565.0,0.0838789]
[1743854338670,0.14972,83566.0,83565.0,0.0838789]
[1743854339268,0.2335179,83566.0,83565.0,0.0838789]
[1743854341570,0.14972,83566.0,83565.0,0.0838789]
[1743854342159,0.14972,83566.0,83565.0,0.0658789]
[1743854342470,0.14972,83566.0,83565.0,0.0837989]
[1743854349776,0.51052,83566.0,83565.0,0.0617989]
[1743854357481,0.51052,83566.0,83565.0,0.0397989]
[1743854362872,0.14972,83566.0,83565.0,0.0397989]
[1743854363073,0.14972,83566.0,83565.0,0.0893989]
[1743854363274,0.14972,83566.0,83565.0,0.0397989]
[1743854365383,0.14972,83566.0,83564.0,0.0837994]
[1743854365684,0.14972,83566.0,83565.0,0.0837989]
[1743854373193,0.14972,83566.0,83565.0,0.0617989]
[1743854380700,0.14972,83566.0,83565.0,0.0397989]
[1743854388407,0.14972,83566.0,83564.0,0.0837994]
[1743854388707,0.0708,83565.0,83564.0,0.0837994]
[1743854389208,0.2105,83565.0,83564.0,0.0837994]
[1743854390295,0.21182,83565.0,83564.0,0.0837994]
[1743854396108,0.21182,83565.0,83564.0,0.0617994]
[1743854403902,0.21182,83565.0,83564.0,0.0397994]
[1743854404506,0.14102,83565.0,83564.0,0.0397994]
[1743854404707,0.11576865,83575.0,83574.0,0.0837899]
[1743854405114,0.11576865,83575.0,83574.0,0.0843899]
[1743854405602,0.11672866,83575.0,83574.0,0.0843899]
[1743854405808,0.11576865,83575.0,83574.0,0.0843899]
[1743854407911,0.11668865,83575.0,83574.0,0.0843899]
[1743854411514,0.11668865,83575.0,83574.0,0.0623899]
[1743854419318,0.11668865,83575.0,83574.0,0.0403899]
[1743854420024,0.24608865,83575.0,83574.0,0.0403899]
[1743854420623,0.24608865,83575.0,83574.0,0.0843817]
[1743854421022,0.32986935,83575.0,83574.0,0.0843817]
[1743854421226,0.24608865,83575.0,83574.0,0.0843817]
[1743854425221,0.60688865,83575.0,83574.0,0.0843817]
[1743854425420,0.60688865,83575.0,83574.0,0.0837817]
[1743854427420,0.60688865,83575.0,83574.0,0.0627817]
[1743854427922,0.60688865,83575.0,83562.0,0.04207617]
[1743854428127,0.083784,83572.0,83567.0,0.0418942]
[1743854428328,0.1834,83571.0,83570.0,0.0837855]
[1743854428519,0.1844,83571.0,83570.0,0.0837855]
[1743854428725,0.2681845,83571.0,83570.0,0.0837855]
[1743854429036,0.2681845,83571.0,83568.0,0.083787]
[1743854429225,0.0837865,83569.0,83568.0,0.083787]
[1743854429725,0.2059865,83569.0,83568.0,0.083787]
[1743854430229,0.20694651,83569.0,83568.0,0.00064]
[1743854430720,0.0837875,83568.0,83567.0,8e-05]
[1743854431028,0.2120875,83568.0,83567.0,0.00076]
[1743854435230,0.0837885,83567.0,83566.0,0.0655491]
[1743854435837,0.2110885,83567.0,83566.0,0.0655491]
[1743854438018,0.21228851,83567.0,83566.0,0.0655491]
[1743854441931,0.0837915,83565.0,83564.0,0.0837907]
[1743854442334,0.2079915,83565.0,83564.0,0.0837907]
[1743854443032,0.2079915,83565.0,83564.0,0.0617907]
[1743854443229,0.0837915,83564.0,83563.0,8e-05]
[1743854443427,0.0837925,83563.0,83562.0,0.00017947]
[1743854443627,0.0418999,83556.0,83549.0,0.0419032]
[1743854443923,0.0838016,83554.0,83553.0,0.0838016]
[1743854444327,0.1257039,83553.0,83552.0,0.0838836]
[1743854444525,0.0838049,83552.0,83551.0,0.0838043]
[1743854444721,0.0419023,83551.0,83550.0,8e-05]
[1743854444925,0.2523669,83551.0,83550.0,8e-05]
[1743854445526,0.0838077,83549.0,83548.0,0.0838068]
[1743854445834,0.08500771,83549.0,83548.0,0.0845668]
[1743854446022,0.12610001,83549.0,83548.0,0.0845668]
[1743854446534,0.20990661,83549.0,83548.0,0.0845668]
[1743854446734,0.12610001,83549.0,83548.0,0.0845668]
[1743854447035,0.20990661,83549.0,83548.0,0.0845668]
[1743854449438,0.20990661,83549.0,83548.0,0.00076]
[1743854449630,0.20990661,83549.0,83548.0,0.0845676]
[1743854450433,0.12610001,83549.0,83548.0,0.0845676]
[1743854453927,0.12610001,83549.0,83548.0,0.1139676]
[1743854454834,0.12610001,83549.0,83548.0,0.1771676]
[1743854455640,0.12610001,83549.0,83548.0,0.1477676]
[1743854456736,0.12610001,83549.0,83548.0,0.0845676]
[1743854461539,0.20990661,83549.0,83548.0,0.0844876]
[1743854462141,0.12610001,83549.0,83548.0,0.0844876]
[1743854463550,0.20990661,83549.0,83548.0,0.0844876]
[1743854468050,0.12610001,83549.0,83548.0,0.0844876]
[1743854471053,0.20990661,83549.0,83548.0,0.00068]
[1743854471551,0.20990661,83549.0,83548.0,0.0844876]
[1743854473056,0.12610001,83549.0,83548.0,0.0844876]
[1743854474054,0.20990661,83549.0,83548.0,0.0844876]
[1743854476350,0.27090661,83549.0,83548.0,0.0844876]
[1743854477560,0.18710001,83549.0,83548.0,0.0844876]
[1743854482862,0.12610001,83549.0,83548.0,0.0844876]
[1743854483062,0.12610001,83549.0,83548.0,0.1053876]
[1743854483263,0.12610001,83549.0,83548.0,0.1643876]
[1743854483661,0.12610001,83549.0,83548.0,0.0844876]
[1743854483861,0.12610001,83549.0,83548.0,0.1643876]
[1743854487163,0.06400001,83549.0,83548.0,0.1643876]
[1743854487464,0.0628,83549.0,83548.0,0.1643876]
[1743854487662,0.06392001,83549.0,83548.0,0.1643876]
[1743854488163,0.06392001,83549.0,83548.0,0.5251876]
[1743854489565,0.06392001,83549.0,83548.0,0.1643876]
[1743854489767,0.06392001,83549.0,83548.0,0.5251876]
[1743854490359,0.06392001,83549.0,83548.0,0.5042876]
[1743854490867,0.0628,83549.0,83548.0,0.1434876]
[1743854491058,0.06392001,83549.0,83548.0,0.1434876]
[1743854491864,0.06392001,83549.0,83548.0,0.1644876]
[1743854493470,0.0628,83549.0,83548.0,0.1644876]
[1743854495773,0.0628,83549.0,83548.0,0.1434876]
[1743854496367,0.06392001,83549.0,83548.0,0.1434876]
[1743854498472,0.06392001,83549.0,83548.0,0.0844876]
[1743854501971,0.0628,83549.0,83548.0,0.0844876]
[1743854503173,0.06392001,83549.0,83548.0,0.0844876]
[1743854506576,0.0628,83549.0,83548.0,0.0844876]
[1743854507876,0.06392001,83549.0,83548.0,0.0844876]
[1743854515880,0.059,83553.0,83552.0,0.0838036]
[1743854519079,0.1172,83553.0,83552.0,0.0838036]
[1743854520184,0.118,83553.0,83552.0,0.0844036]
[1743854521184,0.2018026,83553.0,83552.0,0.0006]
[1743854523575,0.0838036,83552.0,83551.0,8e-05]
[1743854523775,0.0846036,83552.0,83551.0,0.00068]
[1743854524077,0.1990036,83552.0,83551.0,0.00068]
[1743854524482,0.1990036,83552.0,83551.0,8e-05]
[1743854525681,0.1990036,83552.0,83551.0,0.0838846]
[1743854526787,0.1990036,83552.0,83551.0,8e-05]
[1743854526986,0.1152,83552.0,83542.0,0.0419067]
[1743854527180,0.0838046,83551.0,83550.0,8e-05]
[1743854527381,0.1144,83552.0,83550.0,8e-05]
[1743854527684,0.1151,83551.0,83550.0,0.0838855]
[1743854527887,0.1159,83551.0,83550.0,0.0844855]
[1743854528084,0.1159,83551.0,83550.0,0.0838855]
[1743854528286,0.16678,83551.0,83550.0,0.0838855]
[1743854529289,0.1159,83551.0,83550.0,0.0838855]
[1743854529489,0.1159,83551.0,83550.0,0.4452855]
[1743854529874,0.1151,83551.0,83550.0,0.5552855]
[1743854531690,0.0542,83560.0,83559.0,0.0837965]
[1743854531885,0.1108,83560.0,83559.0,0.0837965]
[1743854532190,0.1108,83560.0,83559.0,0.1381965]
[1743854532592,0.454692,83572.0,83562.0,0.0198967]
[1743854532788,0.0837855,83571.0,83568.0,0.0837872]
[1743854532988,0.0837876,83568.0,83566.0,0.0837895]
[1743854534786,0.0561,83567.0,83566.0,0.0837895]
[1743854534986,0.0569,83567.0,83566.0,0.0843895]
[1743854535891,0.1727,83567.0,83566.0,0.4451895]
[1743854537383,0.1727,83567.0,83566.0,0.5034895]
[1743854538592,0.1723501,83567.0,83566.0,0.5034895]
[1743854540285,0.1723501,83567.0,83566.0,0.4814895]
[1743854544285,0.1135501,83567.0,83566.0,0.4814895]
[1743854544590,0.1127501,83567.0,83566.0,0.5413895]
[1743854544992,0.11594812,83575.0,83574.0,0.0837815]
[1743854545193,0.11674812,83575.0,83574.0,0.4445815]
[1743854545488,0.11674812,83575.0,83574.0,0.6159815]
[1743854548900,0.11674812,83575.0,83574.0,0.5340815]
[1743854549401,0.11674812,83575.0,83574.0,0.4793815]
[1743854550099,0.11674812,83575.0,83574.0,0.3614]
[1743854550301,0.25992862,83575.0,83574.0,0.0006]
[1743854550609,0.0418933,83569.0,83566.0,0.3608]
[1743854550796,0.1696,83568.0,83566.0,0.3608]
[1743854551104,0.1696,83568.0,83567.0,0.0556]
[1743854551296,0.1706,83568.0,83567.0,0.0556]
[1743854553808,0.1706,83568.0,83567.0,0.1393885]
[1743854554003,0.1706,83568.0,83567.0,0.0556]
[1743854554704,0.1706,83568.0,83567.0,0.1393885]
[1743854556507,0.1706,83568.0,83567.0,0.1173885]
[1743854556704,0.1706,83568.0,83566.0,0.4446695]
[1743854556901,0.1706,83568.0,83567.0,0.0837885]
[1743854557206,0.2543878,83568.0,83566.0,0.36088]
[1743854557407,0.1706,83568.0,83567.0,0.0837885]
[1743854560207,0.1706,83568.0,83567.0,0.1390885]
[1743854562215,0.1706,83568.0,83567.0,0.4998885]
[1743854563004,0.1706,83568.0,83564.0,0.0418955]
[1743854563210,0.1706,83568.0,83562.0,0.0419766]
[1743854563511,0.1706,83568.0,83567.0,0.0837885]
[1743854564509,0.1706,83568.0,83567.0,0.0617885]
[1743854569708,0.2543875,83568.0,83567.0,0.0617885]
[1743854569906,0.1706,83568.0,83567.0,0.0617885]
[1743854570206,0.2543884,83568.0,83566.0,0.0837894]
[1743854570511,0.2543884,83568.0,83566.0,0.1675788]
[1743854571016,0.2543884,83568.0,83566.0,0.1675786]
[1743854571215,0.2543884,83568.0,83566.0,0.0837892]
[1743854571415,0.1706,83568.0,83566.0,0.0837889]
[1743854571616,0.1706,83568.0,83567.0,0.0837885]
[1743854571914,0.1706,83568.0,83567.0,0.0617885]
[1743854575819,0.2543879,83568.0,83566.0,0.0837895]
[1743854576023,0.2543879,83568.0,83566.0,0.1410895]
[1743854578420,0.1706,83568.0,83567.0,0.0837885]
[1743854579115,0.2543875,83568.0,83566.0,0.1410895]
[1743854579310,0.2543875,83568.0,83566.0,0.141089]
[1743854579511,0.1706,83568.0,83566.0,0.141089]
[1743854579722,0.1706,83568.0,83567.0,0.0617885]
[1743854580622,0.2543875,83568.0,83566.0,0.141089]
[1743854581022,0.0837885,83567.0,83566.0,0.0573]
[1743854581221,0.1696,83568.0,83566.0,0.0573]
[1743854581517,0.1117,83567.0,83566.0,0.1410892]
[1743854581706,0.1127,83567.0,83566.0,0.1410892]
[1743854583820,0.0575,83567.0,83566.0,0.1999892]
[1743854584307,0.0565,83567.0,83566.0,0.1999892]
[1743854585220,0.0565,83567.0,83566.0,0.2005892]
[1743854585421,0.05746001,83567.0,83566.0,0.2005892]
[1743854587421,0.05746001,83567.0,83566.0,0.1785892]
[1743854594330,0.0565,83567.0,83566.0,0.1785892]
[1743854594720,0.0556,83577.0,83574.0,0.0837815]
[1743854594921,0.11690813,83575.0,83574.0,0.0837815]
[1743854595229,0.11690813,83575.0,83574.0,0.1792815]
[1743854596126,0.11690813,83575.0,83574.0,0.2391615]
[1743854598133,0.17590813,83575.0,83574.0,0.2391615]
[1743854601319,0.11690813,83575.0,83574.0,0.2391615]
[1743854602932,0.17640813,83575.0,83574.0,0.2171615]
[1743854604634,0.11690813,83575.0,83574.0,0.2171615]
[1743854609937,0.402675,83606.0,83574.0,0.32738]
[1743854610130,0.0579,83592.0,83591.0,0.4445645]
[1743854610329,0.0579,83592.0,83591.0,0.6170645]
[1743854610641,0.0579,83592.0,83591.0,0.2492645]
[1743854611031,0.0579,83592.0,83591.0,0.0767645]
[1743854611339,0.0712116,83592.0,83591.0,0.0767645]
[1743854614341,0.0712116,83592.0,83591.0,0.1899645]
[1743854614743,0.0712116,83592.0,83591.0,0.5507645]
[1743854615144,0.0712116,83592.0,83591.0,0.5513645]
[1743854618245,0.0712116,83592.0,83591.0,0.5293645]
[1743854624352,0.0718916,83592.0,83591.0,0.5293645]
[1743854626049,0.0718916,83592.0,83591.0,0.5583645]
[1743854627758,0.0712116,83592.0,83591.0,0.5583645]
[1743854629464,0.0712116,83592.0,83591.0,0.5583645]
[1743854629960,0.0712116,83592.0,83591.0,0.0843645]
[1743854630151,0.0718916,83592.0,83591.0,0.0843645]
[1743854630346,0.69825106,83614.0,83591.0,0.3614]
[1743854630562,0.07300299,83601.0,83600.0,0.0837555]
[1743854630750,0.0837504,83605.0,83604.0,0.0837511]
[1743854630951,0.0844304,83605.0,83604.0,0.0844311]
[1743854631449,0.0844304,83605.0,83604.0,0.00068]
[1743854631855,0.0844304,83605.0,83604.0,0.0844314]
[1743854632258,0.0844304,83605.0,83604.0,0.00068]
[1743854633557,0.2569304,83605.0,83604.0,0.00068]
[1743854633756,0.2569304,83605.0,83603.0,0.0624321]
[1743854633962,0.2569304,83605.0,83603.0,0.0630321]
[1743854634162,0.0837514,83604.0,83603.0,0.0630321]
[1743854634364,0.00068,83604.0,83603.0,0.0843518]
[1743854634563,0.05618,83604.0,83603.0,0.0843518]
[1743854634757,0.1957314,83604.0,83603.0,0.0006]
[1743854635064,0.1957314,83604.0,83603.0,0.0843524]